[Event "Cracovia Festival-A 2023"]
[Site "Krakow"]
[Date "2023.12.30"]
[Round "4.29"]
[White "Babiarz, Arkadiusz"]
[Black "Janzelj, Tim"]
[Result "0-1"]
[ECO "B22"]
[WhiteElo "2129"]
[BlackElo "2441"]
[Annotator "RC"]
[PlyCount "146"]
[EventDate "2023.12.24"]
[EventType "swiss"]
[EventCountry "POL"]
[SourceTitle "playchess.com"]
[Source "ChessBase"]
[SourceQuality "1"]
[TimeControl "40/5400+30:1800+30"]

1. e4 {[%emt 0:00:02]} c5 {[%emt 0:01:08]} 2. c3 {[%emt 0:00:56]} d5 {[%emt 0:00:07]} 3. exd5 {[%emt 0:00:05]} Qxd5 {[%emt 0:00:02]} 4. Nf3 {[%emt 0:00:46]} Nf6 {[%emt 0:00:12]} 5. d4 {[%emt 0:00:18]} e6 {[%emt 0:00:18]} 6. Be3 {[%emt 0:00:48]} cxd4 {[%emt 0:00:13]} 7. cxd4 {[%emt 0:04:47]} Bb4+ {[%emt 0:00:27]} 8. Nc3 {[%emt 0:03:23]} Qa5 {[%emt 0:00:19]} 9. Bd2 {[%emt 0:02:02]} O-O {[%emt 0:02:24]} 10. a3 {[%emt 0:01:06]} Bxc3 {[%emt 0:00:07]} 11. Bxc3 {[%emt 0:00:08]} Qd5 {[%emt 0:06:22]} 12. Be2 {[%emt 0:03:29]} b6 {[%emt 0:05:05]} 13. Nd2 {[%emt 0:05:04]} Bb7 {[%emt 0:00:19]} 14. Bf3 {[%emt 0:00:24]} Qd7 {[%emt 0:00:02]} 15. O-O {[%emt 0:02:33]} Rd8 {[%emt 0:01:50]} 16. Nc4 {[%emt 0:04:06]} Bxf3 {[%emt 0:00:46]} 17. Qxf3 {[%emt 0:00:23]} Qd5 {[%emt 0:00:32]} 18. Qe2 {[%emt 0:05:12]} Nc6 {[%emt 0:00:37]} 19. Rfd1 {[%emt 0:08:14]} Rac8 {[%emt 0:03:32]} 20. Ne5 {[%emt 0:03:13]} Ne4 {[%emt 0:02:05]} 21. Nxc6 {[%emt 0:12:27]} Rxc6 {[%emt 0:00:21]} 22. Be1 {[%emt 0:01:09]} Rdc8 {[%emt 0:04:10]} 23. f3 {[%emt 0:00:57]} Nf6 {[%emt 0:00:07]} 24. Bc3 {[%emt 0:01:53]} Qb3 {[%emt 0:02:18]} 25. d5 {[%emt 0:06:12]} Nxd5 {[%emt 0:00:26]} 26. Bd4 {[%emt 0:00:06]} f6 {[%emt 0:02:19]} 27. Qe4 {[%emt 0:05:15]} Qc2 {[%emt 0:01:06]} 28. Qg4 {[%emt 0:04:28]} h5 {[%emt 0:02:18]} 29. Qxh5 {[%emt 0:02:43]} Qxg2+ {[%emt 0:00:39]} 30. Kxg2 {[%emt 0:00:08]} Nf4+ {[%emt 0:00:03]} 31. Kf2 {[%emt 0:08:15]} Rc2+ {[%emt 0:00:04]} 32. Ke3 {[%emt 0:00:06]} Nxh5 {[%emt 0:00:02]} 33. Rd2 {[%emt 0:00:55]} Rxd2 {[%emt 0:00:16]} 34. Kxd2 {[%emt 0:00:06]} Nf4 {[%emt 0:00:24]} 35. Be3 {[%emt 0:03:13]} Nd5 {[%emt 0:00:58]} 36. Bf2 {[%emt 0:01:07]} Rc4 {[%emt 0:00:33]} 37. Kd3 {[%emt 0:01:22]} Rc6 {[%emt 0:01:22]} 38. Rg1 {[%emt 0:02:55]} Nf4+ {[%emt 0:00:36]} 39. Kd2 {[%emt 0:00:40]} Rd6+ {[%emt 0:00:23]} 40. Ke3 {[%emt 0:00:00]} e5 {[%emt 0:00:00]} 41. Bg3 {[%emt 0:05:53]} Rd3+ {[%emt 0:00:54]} 42. Ke4 {[%emt 0:00:28]} Rd4+ {[%emt 0:00:06]} 43. Ke3 {[%emt 0:01:07]} Rd3+ {[%emt 0:01:47]} 44. Ke4 {[%emt 0:00:02]} Rd4+ {[%emt 0:10:15]} 45. Ke3 {[%emt 0:00:03]} Nd5+ {[%emt 0:00:05]} 46. Ke2 {[%emt 0:00:20]} Rc4 {[%emt 0:00:01]} 47. Rd1 {[%emt 0:04:53]} Rc2+ {[%emt 0:00:35]} 48. Ke1 {[%emt 0:00:01]} Ne3 {[%emt 0:04:59]} 49. Rd7 {[%emt 0:00:44]} a5 {[%emt 0:01:26]} 50. Bf2 {[%emt 0:02:56]} Nc4 {[%emt 0:11:31]} 51. b3 {[%emt 0:02:18]} Nxa3 {[%emt 0:00:06]} 52. Bxb6 {[%emt 0:00:16]} Rc3 {[%emt 0:03:55]} 53. Kf2 {[%emt 0:04:59]} Rxb3 {[%emt 0:00:46]} 54. Bxa5 {[%emt 0:00:06]} Nc4 {[%emt 0:00:10]} 55. Be1 {[%emt 0:03:31]} Rb2+ {[%emt 0:00:10]} 56. Kg3 {[%emt 0:00:13]} Ne3 {[%emt 0:00:09]} 57. Kh3 {[%emt 0:05:07]} Nf5 {[%emt 0:10:31]} 58. Bg3 {[%emt 0:01:34]} Kh7 {[%emt 0:02:36]} 59. Ra7 {[%emt 0:01:18]} Kg6 {[%emt 0:00:21]} 60. Ra4 {[%emt 0:00:21]} Re2 {[%emt 0:00:50]} 61. Rg4+ {[%emt 0:01:58]} Kh5 {[%emt 0:01:01]} 62. Ra4 {[%emt 0:00:31]} g5 {[%emt 0:00:07]} 63. Ra6 {[%emt 0:02:36]} Nd4 {[%emt 0:03:57]} 64. Rxf6 {[%emt 0:02:03]} Nxf3 {[%emt 0:00:02]} 65. Bf2 {[%emt 0:00:53]} Rxf2 {[%emt 0:00:02]} 66. Kg3 {[%emt 0:00:05]} Nd2 {[%emt 0:00:02]} 67. Rxf2 {[%emt 0:00:35]} Ne4+ {[%emt 0:00:01]} 68. Kf3 {[%emt 0:00:07]} Nxf2 {[%emt 0:00:02]} 69. Kxf2 {[%emt 0:00:06]} Kg4 {[%emt 0:00:02]} 70. Ke3 {[%emt 0:00:08]} Kh3 {[%emt 0:00:25]} 71. Ke4 {[%emt 0:00:05]} g4 {[%emt 0:00:21]} 72. Kf5 {[%emt 0:00:10]} e4 {[%emt 0:00:02]} 73. Kxe4 {[%emt 0:00:09]} Kxh2 {[%emt 0:00:05]} 0-1

[Event "Cracovia Festival-A 2023"]
[Site "Krakow"]
[Date "2023.12.30"]
[Round "4.30"]
[White "Gorkiewicz, Mateusz"]
[Black "Baum, Jonasz"]
[Result "1-0"]
[ECO "B54"]
[WhiteElo "2147"]
[BlackElo "2421"]
[Annotator "RC"]
[PlyCount "121"]
[EventDate "2023.12.24"]
[EventType "swiss"]
[EventCountry "POL"]
[SourceTitle "playchess.com"]
[Source "ChessBase"]
[SourceQuality "1"]
[TimeControl "40/5400+30:1800+30"]

1. e4 {[%emt 0:00:03]} c5 {[%emt 0:00:03]} 2. Nf3 {[%emt 0:00:07]} d6 {[%emt 0:00:03]} 3. d4 {[%emt 0:00:09]} cxd4 {[%emt 0:00:05]} 4. Nxd4 {[%emt 0:00:08]} Nf6 {[%emt 0:00:04]} 5. f3 {[%emt 0:00:15]} e5 {[%emt 0:00:37]} 6. Nb3 {[%emt 0:00:14]} d5 {[%emt 0:00:05]} 7. Bg5 {[%emt 0:00:18]} d4 {[%emt 0:00:04]} 8. c3 {[%emt 0:00:18]} Nc6 {[%emt 0:00:37]} 9. Bb5 {[%emt 0:00:32]} h6 {[%emt 0:07:32]} 10. Bh4 {[%emt 0:00:35]} Qb6 {[%emt 0:00:51]} 11. Bxc6+ {[%emt 0:00:27]} bxc6 {[%emt 0:00:09]} 12. cxd4 {[%emt 0:00:22]} Ba6 {[%emt 0:00:57]} 13. Bg3 {[%emt 0:01:05]} Bd6 {[%emt 0:10:42]} 14. Bf2 {[%emt 0:01:13]} Qc7 {[%emt 0:18:53]} 15. Nc3 {[%emt 0:15:59]} Rd8 {[%emt 0:11:10]} 16. Qc2 {[%emt 0:03:22]} exd4 {[%emt 0:00:11]} 17. Bxd4 {[%emt 0:16:27]} Bxh2 {[%emt 0:02:31]} 18. O-O-O {[%emt 0:02:02]} Be5 {[%emt 0:04:27]} 19. Bxe5 {[%emt 0:08:57]} Qxe5 {[%emt 0:01:00]} 20. Rxd8+ {[%emt 0:04:50]} Kxd8 {[%emt 0:00:01]} 21. Qf2 {[%emt 0:03:16]} Qc7 {[%emt 0:05:25]} 22. Nc5 {[%emt 0:01:08]} Bc8 {[%emt 0:04:56]} 23. Rd1+ {[%emt 0:02:18]} Ke7 {[%emt 0:02:29]} 24. e5 {[%emt 0:01:59]} Ne8 {[%emt 0:07:04]} 25. Qh4+ {[%emt 0:07:50]} Kf8 {[%emt 0:00:09]} 26. Qd8 {[%emt 0:08:57]} g6 {[%emt 0:05:34]} 27. N3e4 {[%emt 0:02:19]} Kg7 {[%emt 0:02:31]} 28. Qd4 {[%emt 0:00:36]} Kh7 {[%emt 0:02:52]} 29. Rh1 {[%emt 0:03:23]} Qe7 {[%emt 0:05:16]} 30. e6 {[%emt 0:10:32]} f6 {[%emt 0:01:57]} 31. Ng5+ {[%emt 0:01:56]} Kg7 {[%emt 0:01:00]} 32. Nf7 {[%emt 0:00:17]} Rh7 {[%emt 0:00:37]} 33. Nd8 {[%emt 0:00:46]} Qc7 {[%emt 0:01:17]} 34. Rd1 {[%emt 0:01:12]} Kf8 {[%emt 0:02:04]} 35. Qe4 {[%emt 0:03:30]} Qa5 {[%emt 0:00:09]} 36. Nb3 {[%emt 0:00:27]} Qxa2 {[%emt 0:00:42]} 37. Qb4+ {[%emt 0:00:17]} Kg8 {[%emt 0:00:43]} 38. e7 {[%emt 0:00:15]} Bf5 {[%emt 0:01:21]} 39. Qc4+ {[%emt 0:01:03]} Kh8 {[%emt 0:00:03]} 40. Nxc6 {[%emt 0:00:00]} Qb1+ {[%emt 0:00:00]} 41. Kd2 {[%emt 0:00:44]} Qxb2+ {[%emt 0:03:16]} 42. Ke1 {[%emt 0:04:29]} g5 {[%emt 0:07:07]} 43. Rd2 {[%emt 0:08:27]} Qa3 {[%emt 0:05:42]} 44. Kf2 {[%emt 0:05:24]} Bg6 {[%emt 0:03:41]} 45. Nc5 {[%emt 0:02:41]} Bf7 {[%emt 0:05:24]} 46. Qd4 {[%emt 0:00:12]} Qc1 {[%emt 0:02:05]} 47. Rd1 {[%emt 0:03:55]} Qc2+ {[%emt 0:01:39]} 48. Rd2 {[%emt 0:00:05]} Qg6 {[%emt 0:03:20]} 49. Nxa7 {[%emt 0:00:36]} h5 {[%emt 0:00:28]} 50. Nb5 {[%emt 0:04:51]} g4 {[%emt 0:01:08]} 51. Nd6 {[%emt 0:02:41]} gxf3 {[%emt 0:00:40]} 52. Kxf3 {[%emt 0:00:58]} h4 {[%emt 0:03:05]} 53. Qg4 {[%emt 0:01:22]} Qh6 {[%emt 0:01:40]} 54. Nxf7+ {[%emt 0:00:05]} Rxf7 {[%emt 0:00:01]} 55. Rd5 {[%emt 0:00:38]} f5 {[%emt 0:01:47]} 56. Rxf5 {[%emt 0:01:00]} Qc6+ {[%emt 0:00:27]} 57. Ne4 {[%emt 0:00:09]} Rxf5+ {[%emt 0:00:24]} 58. Qxf5 {[%emt 0:00:05]} Ng7 {[%emt 0:00:06]} 59. Qf6 {[%emt 0:00:57]} Qd5 {[%emt 0:01:16]} 60. e8=Q+ {[%emt 0:00:13]} Kh7 {[%emt 0:00:04]} 61. Qeg6+ {[%emt 0:00:05]} 1-0

[Event "Cracovia Festival-A 2023"]
[Site "Krakow"]
[Date "2023.12.30"]
[Round "4.31"]
[White "Berin, Artem"]
[Black "Kazantzoglou, Stefanos"]
[Result "1-0"]
[ECO "D32"]
[WhiteElo "2321"]
[BlackElo "2152"]
[Annotator "RC"]
[PlyCount "103"]
[EventDate "2023.12.24"]
[EventType "swiss"]
[EventCountry "POL"]
[SourceTitle "playchess.com"]
[Source "ChessBase"]
[SourceQuality "1"]
[TimeControl "40/5400+30:1800+30"]

1. d4 {[%emt 0:00:04]} d5 {[%emt 0:00:05]} 2. c4 {[%emt 0:00:06]} e6 {[%emt 0:00:06]} 3. Nc3 {[%emt 0:00:05]} c5 {[%emt 0:00:22]} 4. cxd5 {[%emt 0:00:10]} cxd4 {[%emt 0:00:05]} 5. Qa4+ {[%emt 0:00:06]} Bd7 {[%emt 0:00:06]} 6. Qxd4 {[%emt 0:00:05]} exd5 {[%emt 0:00:06]} 7. Qxd5 {[%emt 0:00:06]} Nf6 {[%emt 0:00:09]} 8. Qd1 {[%emt 0:00:04]} Bc5 {[%emt 0:00:11]} 9. Nf3 {[%emt 0:00:07]} O-O {[%emt 0:00:12]} 10. e3 {[%emt 0:00:06]} Qe7 {[%emt 0:00:45]} 11. Be2 {[%emt 0:00:09]} Rd8 {[%emt 0:00:11]} 12. Bd2 {[%emt 0:00:13]} Nc6 {[%emt 0:01:01]} 13. O-O {[%emt 0:00:08]} Rac8 {[%emt 0:02:27]} 14. Qc2 {[%emt 0:02:44]} Nb4 {[%emt 0:01:06]} 15. Qb1 {[%emt 0:00:33]} Bg4 {[%emt 0:00:44]} 16. a3 {[%emt 0:00:17]} Bxf3 {[%emt 0:10:48]} 17. Bxf3 {[%emt 0:00:07]} Nd3 {[%emt 0:04:11]} 18. Qc2 {[%emt 0:06:35]} Ne5 {[%emt 0:15:29]} 19. Be2 {[%emt 0:04:21]} Qd6 {[%emt 0:03:29]} 20. Rad1 {[%emt 0:06:52]} Nfg4 {[%emt 0:03:28]} 21. g3 {[%emt 0:09:50]} Qh6 {[%emt 0:00:28]} 22. Bxg4 {[%emt 0:01:57]} Nxg4 {[%emt 0:00:07]} 23. h4 {[%emt 0:00:09]} Be7 {[%emt 0:16:41]} 24. Qe4 {[%emt 0:04:16]} Qe6 {[%emt 0:02:44]} 25. Qxe6 {[%emt 0:27:00]} fxe6 {[%emt 0:00:02]} 26. Ne2 {[%emt 0:03:21]} Rc2 {[%emt 0:11:59]} 27. Nd4 {[%emt 0:00:30]} Rxb2 {[%emt 0:00:10]} 28. Bc3 {[%emt 0:02:55]} Ra2 {[%emt 0:00:03]} 29. Nxe6 {[%emt 0:01:02]} Rxd1 {[%emt 0:00:28]} 30. Rxd1 {[%emt 0:00:14]} Kf7 {[%emt 0:03:20]} 31. Ng5+ {[%emt 0:05:13]} Bxg5 {[%emt 0:03:24]} 32. hxg5 {[%emt 0:00:06]} Ke6 {[%emt 0:00:55]} 33. Rf1 {[%emt 0:05:14]} g6 {[%emt 0:04:03]} 34. Bd4 {[%emt 0:02:42]} b6 {[%emt 0:03:52]} 35. e4 {[%emt 0:09:06]} Rxa3 {[%emt 0:01:48]} 36. f3 {[%emt 0:05:28]} Rd3 {[%emt 0:01:30]} 37. Bh8 {[%emt 0:02:27]} Rd8 {[%emt 0:02:16]} 38. Bg7 {[%emt 0:01:14]} Ne3 {[%emt 0:01:44]} 39. Re1 {[%emt 0:01:08]} Nc4 {[%emt 0:02:11]} 40. Rc1 {[%emt 0:00:00]} b5 {[%emt 0:00:00]} 41. f4 {[%emt 0:06:09]} a5 {[%emt 0:04:25]} 42. g4 {[%emt 0:02:13]} Rd3 {[%emt 0:02:56]} 43. f5+ {[%emt 0:02:23]} Kf7 {[%emt 0:00:12]} 44. Bf6 {[%emt 0:00:22]} a4 {[%emt 0:02:17]} 45. e5 {[%emt 0:01:31]} Rd5 {[%emt 0:01:07]} 46. e6+ {[%emt 0:01:07]} Ke8 {[%emt 0:04:58]} 47. Kf2 {[%emt 0:01:29]} Rd2+ {[%emt 0:05:44]} 48. Kg3 {[%emt 0:00:13]} gxf5 {[%emt 0:01:39]} 49. Rh1 {[%emt 0:07:06]} f4+ {[%emt 0:04:35]} 50. Kxf4 {[%emt 0:00:49]} Nd6 {[%emt 0:02:28]} 51. Rxh7 {[%emt 0:00:56]} Rf2+ {[%emt 0:00:39]} 52. Ke3 {[%emt 0:00:10]} 1-0

[Event "Cracovia Festival-A 2023"]
[Site "Krakow"]
[Date "2023.12.30"]
[Round "4.32"]
[White "Pniaczek, Marek"]
[Black "Luczak, Filip"]
[Result "0-1"]
[ECO "B00"]
[WhiteElo "2135"]
[BlackElo "2319"]
[Annotator "RC"]
[PlyCount "80"]
[EventDate "2023.12.24"]
[EventType "swiss"]
[EventCountry "POL"]
[SourceTitle "playchess.com"]
[Source "ChessBase"]
[SourceQuality "1"]
[TimeControl "40/5400+30:1800+30"]

1. e4 {[%emt 0:00:02]} d6 {[%emt 0:00:01]} 2. d4 {[%emt 0:00:06]} Nd7 {[%emt 0:00:02]} 3. Nf3 {[%emt 0:00:47]} g6 {[%emt 0:00:30]} 4. Bd3 {[%emt 0:02:03]} Bg7 {[%emt 0:00:04]} 5. O-O {[%emt 0:00:17]} e5 {[%emt 0:02:22]} 6. c3 {[%emt 0:00:52]} Ngf6 {[%emt 0:01:12]} 7. Re1 {[%emt 0:00:20]} O-O {[%emt 0:00:10]} 8. h3 {[%emt 0:04:12]} Re8 {[%emt 0:05:20]} 9. Nbd2 {[%emt 0:04:01]} Nh5 {[%emt 0:01:19]} 10. Nf1 {[%emt 0:01:49]} Nf4 {[%emt 0:01:56]} 11. Bc2 {[%emt 0:02:33]} Qf6 {[%emt 0:10:34]} 12. N3h2 {[%emt 0:09:34]} h5 {[%emt 0:04:48]} 13. Be3 {[%emt 0:03:45]} Nf8 {[%emt 0:06:26]} 14. Qd2 {[%emt 0:13:37]} g5 {[%emt 0:12:53]} 15. Ng3 {[%emt 0:02:11]} N8g6 {[%emt 0:00:05]} 16. Bd1 {[%emt 0:13:48]} Nh4 {[%emt 0:15:18]} 17. Nxh5 {[%emt 0:08:02]} Qg6 {[%emt 0:01:13]} 18. Nxg7 {[%emt 0:12:43]} Kxg7 {[%emt 0:18:46]} 19. Bxf4 {[%emt 0:01:29]} exf4 {[%emt 0:00:39]} 20. f3 {[%emt 0:08:08]} Rh8 {[%emt 0:00:05]} 21. e5 {[%emt 0:01:40]} Nxg2 {[%emt 0:02:50]} 22. Bc2 {[%emt 0:01:04]} Bf5 {[%emt 0:03:02]} 23. Bxf5 {[%emt 0:00:04]} Qxf5 {[%emt 0:00:01]} 24. Qxg2 {[%emt 0:00:20]} Rxh3 {[%emt 0:00:04]} 25. Nf1 {[%emt 0:01:05]} Rah8 {[%emt 0:00:50]} 26. exd6 {[%emt 0:01:12]} cxd6 {[%emt 0:00:48]} 27. Kf2 {[%emt 0:04:16]} R8h4 {[%emt 0:00:14]} 28. Re2 {[%emt 0:00:49]} g4 {[%emt 0:03:06]} 29. fxg4 {[%emt 0:00:42]} Qg5 {[%emt 0:01:07]} 30. Re4 {[%emt 0:01:37]} f3 {[%emt 0:00:54]} 31. Qg1 {[%emt 0:00:01]} d5 {[%emt 0:01:53]} 32. Re5 {[%emt 0:00:07]} Qf4 {[%emt 0:00:23]} 33. Ke1 {[%emt 0:02:32]} Rxg4 {[%emt 0:02:24]} 34. Qf2 {[%emt 0:01:07]} Rg2 {[%emt 0:00:21]} 35. Qe3 {[%emt 0:00:25]} Re2+ {[%emt 0:01:25]} 36. Qxe2 {[%emt 0:00:03]} fxe2 {[%emt 0:00:04]} 37. Rxe2 {[%emt 0:00:06]} Rh1 {[%emt 0:00:12]} 38. Rf2 {[%emt 0:00:23]} Qe3+ {[%emt 0:00:13]} 39. Re2 {[%emt 0:00:07]} Rxf1+ {[%emt 0:00:35]} 40. Kxf1 {[%emt 0:00:00]} Qf3+ {[%emt 0:00:00]} 0-1

[Event "Cracovia Festival-A 2023"]
[Site "Krakow"]
[Date "2023.12.30"]
[Round "4.33"]
[White "Jedraszek, Pawel"]
[Black "Kyc, Jerzy"]
[Result "1/2-1/2"]
[ECO "B90"]
[WhiteElo "2124"]
[BlackElo "2304"]
[Annotator "RC"]
[PlyCount "251"]
[EventDate "2023.12.24"]
[EventType "swiss"]
[EventCountry "POL"]
[SourceTitle "playchess.com"]
[Source "ChessBase"]
[SourceQuality "1"]
[TimeControl "40/5400+30:1800+30"]

1. e4 {[%emt 0:00:03]} c5 {[%emt 0:00:12]} 2. Nf3 {[%emt 0:00:11]} d6 {[%emt 0:00:10]} 3. d4 {[%emt 0:00:11]} cxd4 {[%emt 0:00:05]} 4. Nxd4 {[%emt 0:00:08]} Nf6 {[%emt 0:00:04]} 5. Nc3 {[%emt 0:00:15]} a6 {[%emt 0:00:05]} 6. Be3 {[%emt 0:00:30]} h5 {[%emt 0:11:17]} 7. h3 {[%emt 0:02:19]} e6 {[%emt 0:04:50]} 8. a4 {[%emt 0:03:53]} Be7 {[%emt 0:01:46]} 9. Be2 {[%emt 0:02:46]} Qc7 {[%emt 0:01:28]} 10. O-O {[%emt 0:05:14]} b6 {[%emt 0:07:55]} 11. f4 {[%emt 0:06:57]} Bb7 {[%emt 0:03:29]} 12. Bf3 {[%emt 0:02:40]} Nbd7 {[%emt 0:00:51]} 13. Qe1 {[%emt 0:01:45]} Rc8 {[%emt 0:08:18]} 14. Rd1 {[%emt 0:05:08]} Nc5 {[%emt 0:05:10]} 15. Bd2 {[%emt 0:03:42]} h4 {[%emt 0:10:34]} 16. b4 {[%emt 0:08:42]} Ncd7 {[%emt 0:00:59]} 17. b5 {[%emt 0:08:18]} Nh5 {[%emt 0:04:49]} 18. Bxh5 {[%emt 0:11:20]} Rxh5 {[%emt 0:00:03]} 19. Qe2 {[%emt 0:00:46]} Qc4 {[%emt 0:02:42]} 20. Qxh5 {[%emt 0:13:03]} Qxd4+ {[%emt 0:00:03]} 21. Rf2 {[%emt 0:00:23]} Rxc3 {[%emt 0:01:15]} 22. Bxc3 {[%emt 0:00:07]} Qxc3 {[%emt 0:00:03]} 23. f5 {[%emt 0:00:55]} exf5 {[%emt 0:01:00]} 24. Qh8+ {[%emt 0:04:00]} Nf8 {[%emt 0:05:51]} 25. exf5 {[%emt 0:00:14]} Qe5 {[%emt 0:12:16]} 26. Kf1 {[%emt 0:06:34]} axb5 {[%emt 0:02:41]} 27. f6 {[%emt 0:00:44]} gxf6 {[%emt 0:01:19]} 28. Qxh4 {[%emt 0:03:01]} Be4 {[%emt 0:00:43]} 29. axb5 {[%emt 0:01:10]} Qxb5+ {[%emt 0:04:12]} 30. Kg1 {[%emt 0:00:11]} f5 {[%emt 0:00:21]} 31. Qg3 {[%emt 0:01:08]} Qc5 {[%emt 0:03:24]} 32. Kh1 {[%emt 0:00:27]} Ng6 {[%emt 0:00:21]} 33. Rfd2 {[%emt 0:02:17]} Kf8 {[%emt 0:03:57]} 34. Qf2 {[%emt 0:03:03]} d5 {[%emt 0:01:42]} 35. Qxc5 {[%emt 0:01:46]} bxc5 {[%emt 0:00:55]} 36. Rxd5 {[%emt 0:01:19]} Bxd5 {[%emt 0:00:01]} 37. Rxd5 {[%emt 0:00:07]} f4 {[%emt 0:00:24]} 38. Kg1 {[%emt 0:00:59]} Kg7 {[%emt 0:01:29]} 39. Kf2 {[%emt 0:01:39]} Kf6 {[%emt 0:00:09]} 40. Kf3 {[%emt 0:00:00]} Ke6 {[%emt 0:00:00]} 41. Rd1 {[%emt 0:07:10]} Kf5 {[%emt 0:02:45]} 42. Ra1 {[%emt 0:05:12]} Nh4+ {[%emt 0:00:51]} 43. Kf2 {[%emt 0:00:15]} Bf6 {[%emt 0:00:11]} 44. Ra7 {[%emt 0:04:53]} Bd4+ {[%emt 0:00:22]} 45. Kf1 {[%emt 0:00:07]} Ke6 {[%emt 0:01:31]} 46. Rc7 {[%emt 0:05:20]} Be3 {[%emt 0:04:40]} 47. Rc8 {[%emt 0:03:33]} Nf5 {[%emt 0:07:46]} 48. Ke2 {[%emt 0:00:10]} Kd5 {[%emt 0:02:47]} 49. Rf8 {[%emt 0:00:35]} Nd4+ {[%emt 0:02:55]} 50. Kd1 {[%emt 0:00:35]} Ke6 {[%emt 0:01:37]} 51. Re8+ {[%emt 0:01:57]} Kf5 {[%emt 0:00:53]} 52. Re7 {[%emt 0:02:44]} f6 {[%emt 0:01:17]} 53. Re8 {[%emt 0:00:41]} Bg1 {[%emt 0:08:42]} 54. Kd2 {[%emt 0:01:18]} f3 {[%emt 0:02:39]} 55. gxf3 {[%emt 0:00:23]} Kf4 {[%emt 0:00:30]} 56. c3 {[%emt 0:02:26]} Nxf3+ {[%emt 0:00:05]} 57. Ke2 {[%emt 0:00:22]} f5 {[%emt 0:01:25]} 58. Rg8 {[%emt 0:01:18]} Be3 {[%emt 0:00:46]} 59. Re8 {[%emt 0:00:41]} Ng1+ {[%emt 0:00:28]} 60. Kd3 {[%emt 0:00:10]} Bf2 {[%emt 0:00:24]} 61. Rh8 {[%emt 0:00:43]} Ke5 {[%emt 0:00:59]} 62. h4 {[%emt 0:01:20]} f4 {[%emt 0:00:28]} 63. h5 {[%emt 0:00:12]} Kf6 {[%emt 0:00:24]} 64. Rf8+ {[%emt 0:00:23]} Kg5 {[%emt 0:00:37]} 65. h6 {[%emt 0:00:21]} Kxh6 {[%emt 0:00:26]} 66. Rxf4 {[%emt 0:00:02]} Bg3 {[%emt 0:00:33]} 67. Rg4 {[%emt 0:01:03]} Bf2 {[%emt 0:00:28]} 68. Rg2 {[%emt 0:00:19]} c4+ {[%emt 0:00:17]} 69. Kxc4 {[%emt 0:00:24]} Be3 {[%emt 0:00:37]} 70. Kd5 {[%emt 0:01:06]} Kh5 {[%emt 0:00:33]} 71. c4 {[%emt 0:01:11]} Kh4 {[%emt 0:00:32]} 72. c5 {[%emt 0:00:20]} Bxc5 {[%emt 0:00:03]} 73. Kxc5 {[%emt 0:00:05]} Nf3 {[%emt 0:00:29]} 74. Kd5 {[%emt 0:00:09]} Kh3 {[%emt 0:00:22]} 75. Rg8 {[%emt 0:00:10]} Nh4 {[%emt 0:00:45]} 76. Ke4 {[%emt 0:00:08]} Ng2 {[%emt 0:00:37]} 77. Rg5 {[%emt 0:00:40]} Nh4 {[%emt 0:00:39]} 78. Ke3 {[%emt 0:00:13]} Kh2 {[%emt 0:00:37]} 79. Ke2 {[%emt 0:00:30]} Ng2 {[%emt 0:00:31]} 80. Kf3 {[%emt 0:00:28]} Ne1+ {[%emt 0:00:26]} 81. Kf2 {[%emt 0:00:11]} Nd3+ {[%emt 0:00:02]} 82. Kf1 {[%emt 0:00:16]} Kh3 {[%emt 0:00:17]} 83. Ke2 {[%emt 0:00:06]} Kh4 {[%emt 0:00:31]} 84. Rg7 {[%emt 0:00:10]} Nf4+ {[%emt 0:00:38]} 85. Kf3 {[%emt 0:00:06]} Ne6 {[%emt 0:00:35]} 86. Rg6 {[%emt 0:00:08]} Ng5+ {[%emt 0:00:36]} 87. Kf4 {[%emt 0:00:05]} Nh3+ {[%emt 0:00:06]} 88. Kf5 {[%emt 0:00:04]} Nf2 {[%emt 0:00:22]} 89. Rg1 {[%emt 0:00:14]} Kh3 {[%emt 0:00:43]} 90. Kf4 {[%emt 0:00:05]} Nd3+ {[%emt 0:00:50]} 91. Ke3 {[%emt 0:00:11]} Ne5 {[%emt 0:00:36]} 92. Ke4 {[%emt 0:00:06]} Ng4 {[%emt 0:00:22]} 93. Kf5 {[%emt 0:00:07]} Ne3+ {[%emt 0:00:21]} 94. Kf4 {[%emt 0:00:20]} Nd5+ {[%emt 0:00:39]} 95. Ke4 {[%emt 0:00:42]} Nf6+ {[%emt 0:00:13]} 96. Kf3 {[%emt 0:00:23]} Kh4 {[%emt 0:00:12]} 97. Kf4 {[%emt 0:00:06]} Nd5+ {[%emt 0:00:44]} 98. Kf3 {[%emt 0:00:18]} Kh5 {[%emt 0:00:12]} 99. Ke4 {[%emt 0:00:18]} Ne7 {[%emt 0:00:15]} 100. Rg7 {[%emt 0:00:19]} Ng6 {[%emt 0:00:12]} 101. Kf5 {[%emt 0:00:07]} Nh4+ {[%emt 0:00:06]} 102. Kf6 {[%emt 0:00:09]} Nf3 {[%emt 0:00:35]} 103. Rg8 {[%emt 0:00:16]} Kh4 {[%emt 0:00:19]} 104. Kf5 {[%emt 0:00:06]} Nd4+ {[%emt 0:00:25]} 105. Ke5 {[%emt 0:00:10]} Ne2 {[%emt 0:00:25]} 106. Rg2 {[%emt 0:00:10]} Ng3 {[%emt 0:00:09]} 107. Kf4 {[%emt 0:00:08]} Nh5+ {[%emt 0:00:04]} 108. Ke3 {[%emt 0:00:13]} Nf6 {[%emt 0:01:36]} 109. Rg6 {[%emt 0:00:33]} Nh5 {[%emt 0:02:25]} 110. Kf3 {[%emt 0:00:10]} Kh3 {[%emt 0:00:03]} 111. Rg1 {[%emt 0:00:11]} Kh4 {[%emt 0:00:08]} 112. Ke3 {[%emt 0:00:21]} Kh3 {[%emt 0:00:21]} 113. Rg6 {[%emt 0:00:10]} Kh4 {[%emt 0:00:58]} 114. Rg8 {[%emt 0:00:07]} Nf6 {[%emt 0:00:34]} 115. Rg2 {[%emt 0:00:12]} Kh5 {[%emt 0:00:36]} 116. Kf4 {[%emt 0:00:08]} Nd5+ {[%emt 0:00:28]} 117. Ke5 {[%emt 0:00:08]} Ne3 {[%emt 0:00:38]} 118. Rg1 {[%emt 0:00:02]} Ng4+ {[%emt 0:00:37]} 119. Kf4 {[%emt 0:00:14]} Nh6 {[%emt 0:00:27]} 120. Rg3 {[%emt 0:00:04]} Nf7 {[%emt 0:00:26]} 121. Rg4 {[%emt 0:00:20]} Kh6 {[%emt 0:00:24]} 122. Kf5 {[%emt 0:00:18]} Kh5 {[%emt 0:00:42]} 123. Rd4 {[%emt 0:00:07]} Nh6+ {[%emt 0:00:16]} 124. Kf4 {[%emt 0:00:08]} Kg6 {[%emt 0:00:06]} 125. Rd6+ {[%emt 0:00:07]} Kg7 {[%emt 0:00:07]} 126. Ke4 1/2-1/2